fUST/lending_fUST_20251101
["ID","MTS","AMOUNT","RATE_DAILY","PERIOD"]
[392827655,1762008646767,-500.0,0.00023988,2]
[392827656,1762008646778,-500.0,0.00023988,2]
[392827657,1762008646789,-500.0,0.00023988,2]
[392827658,1762008646800,-500.0,0.00023988,2]
[392827659,1762008646809,-500.0,0.00023988,2]
[392827660,1762008646819,-570.39755143,0.00023988,2]
[392827661,1762008646830,-381.6290341,0.00023988,2]
[392827662,1762008646844,-500.0,0.00023988,2]
[392827663,1762008646853,-180.85303155,0.00023989,2]
[392827664,1762008646863,-206.99793087,0.00023989,2]
[392827665,1762008646874,-87550.9401901,0.0002399,2]
[392827666,1762008646886,-2073.87470354,0.00024355,2]
[392827667,1762008646896,-1000.0,0.00024396,2]
[392827668,1762008646907,-2073.87470354,0.00024434,2]
[392827669,1762008646918,-1000.0,0.00024521,2]
[392827670,1762008646928,-380.0,0.00024658,2]
[392827671,1762008646938,-2073.87470354,0.00024798,2]
[392827673,1762008646948,-427.13628935,0.000248,2]
[392827675,1762008646958,-500.0,0.000248,2]
[392827676,1762008646969,-172.90399864,0.00024873,2]
[392827677,1762008646979,-155.14,0.0002489,3]
[392827678,1762008646988,-465.43,0.0002489,3]
[392827679,1762008646998,-427.13628935,0.0002489,2]
[392827680,1762008647009,-1000.0,0.00024899,2]
[392827681,1762008647018,-1000.0,0.00024899,2]
[392827682,1762008647029,-1000.0,0.00024899,2]
[392827683,1762008647145,-1000.0,0.00024899,2]
[392827684,1762008647158,-1000.0,0.00024899,2]
[392827685,1762008647168,-14253.75065227,0.000249,2]
[392827686,1762008647177,-5314.717596,0.000249,2]
[392827687,1762008647186,-500.66529198,0.00024973,2]
[392827688,1762008647195,-500.0,0.00024973,2]
[392827689,1762008647204,-620.55,0.00024974,3]
[392827690,1762008647213,-310.27,0.00024975,3]
[392827691,1762008647223,-1000.0,0.00024983,2]
[392827692,1762008647233,-1000.0,0.00024983,2]
[392827693,1762008647242,-151.0,0.00024985,2]
[392827694,1762008647252,-151.0,0.00024985,2]
[392827695,1762008647261,-151.0,0.00024985,2]
[392827696,1762008647270,-151.0,0.00024985,2]
[392827697,1762008647279,-151.0,0.00024985,2]
[392827698,1762008647288,-151.0,0.00024985,2]
[392827699,1762008647298,-151.0,0.00024985,2]
[392827700,1762008647307,-151.0,0.00024985,2]
[392827701,1762008647316,-151.0,0.00024985,2]
[392827702,1762008647325,-151.0,0.00024985,2]
[392827703,1762008647334,-151.0,0.00024985,2]
[392827704,1762008647343,-151.0,0.00024985,2]
[392827705,1762008647353,-151.0,0.00024985,2]
[392827706,1762008647363,-151.0,0.00024985,2]
[392827707,1762008647372,-151.0,0.00024985,2]
[392827708,1762008647381,-151.0,0.00024985,2]
[392827709,1762008647390,-151.0,0.00024985,2]
[392827710,1762008647399,-151.0,0.00024985,2]
[392827711,1762008647408,-151.0,0.00024985,2]
[392827712,1762008647418,-151.0,0.00024985,2]
[392827713,1762008647427,-151.0,0.00024985,2]
[392827714,1762008647436,-151.0,0.00024985,2]
[392827715,1762008647446,-2073.87470356,0.00024988,2]
[392827716,1762008647455,-1000.0,0.00024989,2]
[392827717,1762008647464,-29230.946778,0.0002499,2]
[392827718,1762008647474,-4698.49918285,0.0002499,2]
[392827719,1762008647483,-1241.1,0.0002499,3]
[392827720,1762008647493,-1000.0,0.00024999,2]
[392827721,1762008647502,-298.73438807,0.00024999,2]
[392827722,1762008647510,-36433.8505288,0.00025,2]
[392827723,1762008647522,-877.76212956,0.00025,2]
[392827724,1762008647533,-6101.17011207,0.00025,2]
[392827725,1762008647544,-1851.37478187,0.00025,2]
[392827734,1762008769134,278.0,0.0002499,120]
[392827735,1762008769564,278.0,0.0002498,120]
[392827736,1762008770006,278.0,0.0002497,120]
[392827737,1762008848147,169.104945,0.00011843,2]
[392827763,1762008914588,250.0,0.00038184,120]
[392827764,1762008915211,250.0,0.00038184,120]
[392827765,1762008915850,250.0,0.00038184,120]
[392827766,1762008916479,250.0,0.00038184,120]
[392827767,1762008917157,250.0,0.00038184,120]
[392827768,1762008917814,250.0,0.00038184,120]
[392827769,1762008918452,250.0,0.00038184,120]
[392827770,1762008919059,250.0,0.00038184,120]
[392827778,1762009089193,547.77399,0.00013699,2]
[392827779,1762009089398,547.77399,0.00020187,2]
[392827795,1762009200355,5000.0,0.00023,2]
[392827800,1762009222658,5000.0,0.00023,2]
[392827802,1762009245051,5000.0,0.00023,2]
[392827807,1762009267311,5000.0,0.00023,2]
[392827808,1762009275097,203.0576355,0.00022978,2]
[392827809,1762009289793,5000.0,0.00023,2]
[392827810,1762009312732,2775.20349029,0.00023,2]
[392827811,1762009319033,1164.79,0.000234,120]
[392827812,1762009350253,500.06,0.00032877,120]
[392827822,1762009489565,195.0,0.0002499,120]
[392827823,1762009490022,195.0,0.0002498,120]
[392827824,1762009490464,195.0,0.0002497,120]
[392827872,1762009596361,5000.0,0.00023,2]
[392827951,1762009832004,-267.26205268,0.00023352,2]
[392827952,1762009832014,-397.0,0.00023451,2]
[392827953,1762009832024,-1070.34986649,0.00023559,2]
[392827954,1762009832033,-1070.34986649,0.00023676,2]
[392827955,1762009832043,-1000.0,0.00023678,30]
[392827956,1762009832053,-351.91826978,0.0002399,2]
[392827957,1762009832066,-1070.34986649,0.00023993,2]
[392827958,1762009832075,-964.61026067,0.00024308,2]
[392827959,1762009832085,-1070.34986649,0.00024383,2]
[392827960,1762009832094,-151.0,0.00024395,2]
[392827961,1762009832103,-151.0,0.00024395,2]
[392827962,1762009832112,-151.0,0.00024395,2]
[392827963,1762009832121,-151.0,0.00024395,2]
[392827964,1762009832131,-151.0,0.00024395,2]
[392827965,1762009832140,-151.0,0.00024395,2]
[392827966,1762009832150,-151.0,0.00024395,2]
[392827967,1762009832159,-151.0,0.00024395,2]
[392827968,1762009832168,-151.0,0.00024395,2]
[392827969,1762009832178,-151.0,0.00024395,2]
[392827970,1762009832188,-151.0,0.00024395,2]
[392827971,1762009832197,-151.0,0.00024395,2]
[392827972,1762009832207,-151.0,0.00024395,2]
[392827973,1762009832221,-151.0,0.00024395,2]
[392827974,1762009832231,-151.0,0.00024395,2]
[392827975,1762009832240,-151.0,0.00024395,2]
[392827976,1762009832254,-151.0,0.00024395,2]
[392827977,1762009832264,-151.0,0.00024395,2]
[392827978,1762009832273,-151.0,0.00024395,2]
[392827979,1762009832283,-151.0,0.00024395,2]
[392827980,1762009832292,-264.18676193,0.00024406,2]
[392827981,1762009832301,-500.0,0.00024406,2]
[392827982,1762009832310,-247.25397822,0.00024406,2]
[392828008,1762009837836,-252.74602178,0.00024406,2]
[392828009,1762009837846,-163.41011884,0.00024406,2]
[392828010,1762009837856,-500.0,0.00024406,2]
[392828011,1762009837866,-400.0,0.00024407,2]
[392828012,1762009837875,-300.0,0.00024407,2]
[392828013,1762009837885,-300.0,0.00024407,2]
[392828014,1762009837895,-1281.03359127,0.00024407,2]
[392828016,1762009837906,-3201.27442304,0.00024407,2]
[392828017,1762009837918,-849.50829717,0.00024407,2]
[392828053,1762009840093,-14197.06461699,0.00024407,2]
[392828097,1762009842935,-415.07431893,0.00024407,2]
[392828098,1762009843046,-3206.17666002,0.00024407,2]
[392828099,1762009843055,-500.0,0.00024495,2]
[392828100,1762009843065,-1997.26436311,0.00024587,2]
[392828101,1762009843076,-3.73563689,0.00024587,2]
[392828102,1762009843086,-450.8911106,0.00024595,2]
[392828103,1762009843095,-56.09740561,0.00024643,2]
[392828104,1762009843109,-1014.25246088,0.00024643,2]
[392828105,1762009843119,-1070.3498665,0.00024696,2]
[392828106,1762009843128,-2001.0,0.00024712,2]
[392828107,1762009843138,-500.0,0.00024769,2]
[392828108,1762009843148,-328.9,0.00024873,2]
[392828109,1762009843158,-268.86201236,0.000249,2]
[392828110,1762009843167,-9502.50043484,0.000249,2]
[392828111,1762009843176,-733.03117583,0.00024952,2]
[392828112,1762009843186,-500.0,0.00024973,2]
[392828113,1762009843197,-500.0,0.00024973,2]
[392828114,1762009843206,-271.5572656,0.00024974,2]
[392828115,1762009843215,-8439.3502595,0.00024974,2]
[392828116,1762009843224,-9300.755793,0.0002499,2]
[392828117,1762009843233,-1121.2327596,0.0002499,2]
[392828118,1762009843243,-846.47,0.0002499,3]
[392828119,1762009843252,-423.24,0.0002499,3]
[392828120,1762009843261,-211.62,0.0002499,3]
[392828121,1762009843270,-634.87,0.0002499,3]
[392828122,1762009843280,-587.5,0.0002499,10]
[392828123,1762009843289,-500.0,0.0002499,2]
[392828124,1762009843299,-222796.76852841,0.00025,2]
[392828136,1762009883204,376.8,0.00038182,20]
[392828166,1762010095824,190.75,0.00023,2]
[392828173,1762010209628,150.5,0.0002499,120]
[392828174,1762010210073,150.5,0.0002498,120]
[392828175,1762010210507,150.5,0.0002497,120]
[392828184,1762010246970,2345.46645395,0.00023,2]
[392828200,1762010276794,3235.26658353,0.00023,2]
[392828225,1762010630988,250.0,0.00038175,20]
[392828226,1762010653775,252.61,0.00038175,20]
[392828239,1762010790240,9771.85,0.00023,2]
[392828241,1762010811414,1813.41129146,0.00023,2]
[392828242,1762010863218,254.10428152,0.000209,2]
[392828243,1762010863288,120228.27023665,0.00018,2]
[392828244,1762010884403,3092.01516402,0.00019205,5]
[392828245,1762010900130,345.44731849,0.0002,2]
[392828246,1762010902995,12253.2169441,0.0002,2]
[392828247,1762010904817,27348.41493245,0.00017,2]
[392828248,1762010907721,1377.54449564,0.0002061,2]
[392828249,1762010909801,1149.499999,0.00018,2]
[392828250,1762010913055,213.94732759,0.00016,2]
[392828253,1762010914506,205.49901009,0.00021,2]
[392828255,1762010914752,5339.85368821,0.00023,2]
[392828257,1762010915986,2347.75808498,0.0001,2]
[392828258,1762010918048,295.10047563,0.00023,118]
[392828260,1762010927122,-391.21520603,0.00023162,2]
[392828261,1762010929782,150.5,0.0002499,120]
[392828262,1762010930219,150.5,0.0002498,120]
[392828263,1762010930657,-926.42961745,0.00023162,2]
[392828264,1762010930692,150.5,0.0002497,120]
[392828265,1762010932570,-315.85974669,0.00023162,2]
[392828270,1762010933509,-502.89483551,0.00023162,2]
[392828276,1762010934865,-291.05516449,0.00023162,2]
[392828277,1762010937272,-219.40936407,0.00023162,2]
[392828278,1762010938822,-160.51773996,0.00023162,2]
[392828279,1762010938846,-311.00233505,0.00023169,2]
[392828280,1762010938867,-118.59267051,0.000232,2]
[392828281,1762010948048,-358.29347922,0.000232,2]
[392828282,1762010950869,-23.11385027,0.000232,2]
[392828283,1762010950892,-205.91144101,0.00023213,2]
[392828284,1762010950912,-279.88304505,0.000235,2]
[392828285,1762010953298,-508.90833633,0.000235,2]
[392828286,1762010954593,-211.20861862,0.000235,2]
[392828287,1762010954622,-300.0,0.00024141,2]
[392828288,1762010954641,-211.20861862,0.00024142,2]
[392828289,1762010954651,-300.0,0.00024142,2]
[392828290,1762010954662,-8977.59276276,0.00024142,2]
[392828292,1762010954799,-10000.01,0.00024142,2]
[392828293,1762010954924,-10000.01,0.00024142,2]
[392828294,1762010955036,-10000.01,0.00024142,2]
[392828295,1762010955160,-10000.01,0.00024142,2]
[392828296,1762010955291,-10000.01,0.00024142,2]
[392828297,1762010955405,-10000.01,0.00024142,2]
[392828298,1762010955705,-4844.21914036,0.00024142,2]
[392828299,1762010955725,-1000.0,0.00024296,2]
[392828300,1762010955735,-793.95,0.0002464,10]
[392828301,1762010955744,-3050.26914036,0.0002465,2]
[392828302,1762010955755,-311.57171928,0.0002465,2]
[392828303,1762010955812,-10000.01,0.0002465,2]
[392828304,1762010955931,-10000.01,0.0002465,2]
[392828305,1762010960545,-10000.01,0.0002465,2]
[392828306,1762010960677,-10000.01,0.0002465,2]
[392828307,1762010960804,-10000.01,0.0002465,2]
[392828308,1762010960923,-641.82438454,0.0002465,2]
[392828309,1762010960955,-1042.90842606,0.00024799,2]
[392828310,1762010960984,-1178.04544267,0.00024873,2]
[392828311,1762010961017,-265.94,0.00024887,3]
[392828312,1762010961045,-745.0,0.00024896,2]
[392828313,1762010961064,-641.82438454,0.00024897,2]
[392828314,1762010961078,-1042.90842606,0.00024897,2]
[392828315,1762010961089,-1178.04544267,0.00024897,2]
[392828316,1762010961099,-265.94,0.00024897,2]
[392828317,1762010961110,-745.0,0.00024897,2]
[392828318,1762010961121,-2252.57349346,0.00024897,2]
[392828319,1762010961147,-10000.01,0.00024897,2]
[392828320,1762010961184,-10000.01,0.00024897,2]
[392828321,1762010961311,-10000.01,0.00024897,2]
[392828322,1762010961473,-10000.01,0.00024897,2]
[392828323,1762010961629,-2773.65933789,0.00024897,2]
[392828324,1762010961663,-500.0,0.00024897,2]
[392828325,1762010961694,-500.0,0.00024897,2]
[392828326,1762010961724,-500.0,0.00024897,2]
[392828327,1762010961754,-500.0,0.00024897,2]
[392828328,1762010961773,-500.0,0.00024897,2]
[392828329,1762010961783,-500.0,0.00024897,2]
[392828330,1762010961793,-582.86423201,0.00024897,2]
[392828331,1762010961806,-500.0,0.00024897,2]
[392828332,1762010961815,-500.0,0.00024897,2]
[392828333,1762010961824,-190.79510588,0.00024897,2]
[392828334,1762010961839,-309.20489412,0.00024897,2]
[392828335,1762010961848,-190.79510588,0.00024897,2]
[392828336,1762010961859,-309.20489412,0.00024897,2]
[392828337,1762010961869,-190.79510588,0.00024897,2]
[392828338,1762010961881,-309.20489412,0.00024897,2]
[392828339,1762010961893,-190.79510588,0.00024897,2]
[392828340,1762010961929,-309.20489412,0.00024897,2]
[392828341,1762010961962,-500.0,0.00024897,2]
[392828342,1762010961992,-500.0,0.00024897,2]
[392828343,1762010962025,-500.0,0.00024897,2]
[392828344,1762010962147,-500.0,0.00024897,2]
[392828345,1762010962181,-500.0,0.00024897,2]
[392828346,1762010962211,-456.9614739,0.00024897,2]
[392828347,1762010962243,-500.0,0.00024897,2]
[392828348,1762010962276,-495.54227281,0.00024897,2]
[392828349,1762010962308,-500.0,0.00024897,2]
[392828350,1762010962330,-500.0,0.00024897,2]
[392828351,1762010962341,-452.69132422,0.00024897,2]
[392828352,1762010962356,-47.30867578,0.00024897,2]
[392828353,1762010962366,-261.89621834,0.00024897,2]
[392828354,1762010962377,-238.10378166,0.00024897,2]
[392828355,1762010962386,-261.89621834,0.00024897,2]
[392828356,1762010962397,-238.10378166,0.00024897,2]
[392828357,1762010962407,-261.89621834,0.00024897,2]
[392828358,1762010962418,-252.53903343,0.00024897,2]
[392828359,1762010962427,-247.46096657,0.00024897,2]
[392828360,1762010962438,-252.53903343,0.00024897,2]
[392828361,1762010962447,-247.46096657,0.00024897,2]
[392828362,1762010962462,-252.53903343,0.00024897,2]
[392828363,1762010962471,-247.46096657,0.00024897,2]
[392828364,1762010962482,-252.53903343,0.00024897,2]
[392828365,1762010962492,-204.42244047,0.00024897,2]
[392828366,1762010962503,-295.57755953,0.00024897,2]
[392828367,1762010962514,-204.42244047,0.00024897,2]
[392828368,1762010962530,-295.57755953,0.00024897,2]
[392828369,1762010962540,-199.96471328,0.00024897,2]
[392828370,1762010962552,-300.03528672,0.00024897,2]
[392828371,1762010962561,-199.96471328,0.00024897,2]
[392828372,1762010962573,-203.2249957,0.00024897,2]
[392828373,1762010962582,-273.36772264,0.00024897,2]
[392828374,1762010966639,-508.90833633,0.00024403,2]
[392828375,1762010966684,-226.63227736,0.00024897,2]
[392828376,1762010966718,-500.0,0.00024897,2]
[392828377,1762010966750,-500.0,0.00024897,2]
[392828378,1762010966782,-500.0,0.00024897,2]
[392828379,1762010966817,-500.0,0.00024897,2]
[392828380,1762010966855,-500.0,0.00024897,2]
[392828381,1762010966888,-166.17136364,0.00024897,2]
[392828382,1762010966922,-500.0,0.00024899,2]
[392828383,1762010966957,-302.0746924,0.00024899,2]
[392828384,1762010966978,-508.90833633,0.000249,2]
[392828385,1762010966994,-226.63227736,0.000249,2]
[392828386,1762010967005,-500.0,0.000249,2]
[392828387,1762010967038,-4900.55032379,0.000249,2]
[392828388,1762010967052,-198.90935242,0.000249,2]
[392828389,1762010967062,-215.08960988,0.000249,2]
[392828390,1762010967071,-86.0010377,0.0002493,2]
[392828391,1762010967086,-500.0,0.0002493,2]
[392828392,1762010967099,-500.0,0.0002493,2]
[392828393,1762010967111,-500.0,0.0002493,2]
[392828394,1762010967122,-166.17136364,0.0002493,2]
[392828395,1762010967133,-500.0,0.0002493,2]
[392828396,1762010967149,-51.07168196,0.0002493,2]
[392828397,1762010967159,-203.6679492,0.0002493,2]
[392828398,1762010967168,-47.33506124,0.00024973,2]
[392828399,1762010967184,-454.42055123,0.00024973,2]
[392828400,1762010967193,-284.96190701,0.00024985,2]
[392828401,1762010967203,-484.77102923,0.00024985,2]
[392828402,1762010967212,-368.28317307,0.00024985,2]
[392828403,1762010967224,-144.64825954,0.00024985,2]
[392828404,1762010967234,-872.58785261,0.00024985,2]
[392828405,1762010967244,-151.0,0.00024985,2]
[392828406,1762010967253,-151.0,0.00024985,2]
[392828407,1762010967263,-151.0,0.00024985,2]
[392828408,1762010967272,-151.0,0.00024985,2]
[392828409,1762010967281,-151.0,0.00024985,2]
[392828410,1762010967290,-151.0,0.00024985,2]
[392828411,1762010967299,-151.0,0.00024985,2]
[392828412,1762010967309,-151.0,0.00024985,2]
[392828413,1762010967318,-151.0,0.00024985,2]
[392828414,1762010967328,-151.0,0.00024985,2]
[392828415,1762010967342,-151.0,0.00024985,2]
[392828416,1762010967351,-151.0,0.00024985,2]
[392828417,1762010967360,-151.0,0.00024985,2]
[392828418,1762010967370,-151.0,0.00024985,2]
[392828419,1762010967379,-151.0,0.00024985,2]
[392828420,1762010967390,-151.0,0.00024985,2]
[392828421,1762010967400,-151.0,0.00024985,2]
[392828422,1762010967409,-151.0,0.00024985,2]
[392828423,1762010967419,-151.0,0.00024985,2]
[392828424,1762010967429,-151.0,0.00024985,2]
[392828425,1762010967439,-911.87810242,0.00024985,2]
[392828426,1762010967448,-150.34546164,0.00024985,2]
[392828427,1762010969835,-0.65453836,0.00024985,2]
[392828428,1762010969864,-151.0,0.00024985,2]
[392828429,1762010969899,-1551.26729352,0.00024985,2]
[392828430,1762010971877,-531.00000003,0.0002499,2]
[392828431,1762010975443,-460.08166367,0.0002499,2]
[392828432,1762010976316,-991.0816637,0.0002499,2]
[392828433,1762010977870,390.54310535,0.00024985,2]
[392828434,1762010985095,-3622.01321448,0.0002499,2]
[392828435,1762010985129,-2755.98357104,0.0002499,2]
[392828436,1762010985158,-833.98896615,0.0002499,3]
[392828438,1762011009691,179.84,0.0002499,2]
[392828442,1762011017856,151.0,0.00024985,2]
[392828443,1762011018472,151.0,0.00024985,2]
[392828444,1762011019130,151.0,0.00024985,2]
[392828445,1762011019730,151.0,0.00024985,2]
[392828446,1762011020393,151.0,0.00024985,2]
[392828447,1762011021064,151.0,0.00024985,2]
[392828448,1762011022259,151.0,0.00024985,2]
[392828449,1762011022902,151.0,0.00024985,2]
[392828450,1762011023514,151.0,0.00024985,2]
[392828451,1762011024606,151.0,0.00024985,2]
[392828452,1762011025242,151.0,0.00024985,2]
[392828453,1762011025847,151.0,0.00024985,2]
[392828454,1762011026474,151.0,0.00024985,2]
[392828455,1762011027094,151.0,0.00024985,2]
[392828456,1762011027779,151.0,0.00024985,2]
[392828457,1762011028397,151.0,0.00024985,2]
[392828458,1762011029023,151.0,0.00024985,2]
[392828459,1762011029699,73.22492562,0.00024985,2]
[392828460,1762011029729,77.77507438,0.00024985,2]
[392828461,1762011030349,151.0,0.00024985,2]
[392828462,1762011030958,151.0,0.00024985,2]
[392828511,1762011032086,-493.77,0.0002499,3]
[392828513,1762011032096,-246.89,0.0002499,3]
[392828515,1762011032106,-740.68,0.0002499,3]
[392828518,1762011032116,-977.0,0.00024999,2]
[392828520,1762011032126,-211.45228468,0.00024999,2]
[392828522,1762011032136,-489.243301,0.00024999,2]
[392828524,1762011032147,-500.0,0.00024999,2]
[392828526,1762011032158,-612.71502797,0.00024999,2]
[392828528,1762011032168,-14479.03947708,0.00025,2]
[392828531,1762011032181,-3441.0,0.00025,2]
[392828533,1762011032194,-7519.9044629,0.00025,2]
[392828535,1762011032206,-11201.16299201,0.00025,2]
[392828551,1762011037966,-540.75,0.00025,2]
[392828552,1762011037979,-9033.56294425,0.00025,2]
[392828553,1762011037995,-23775.90571405,0.00025,2]
[392828612,1762011040311,-135.30067317,0.00025,2]
[392828627,1762011043175,-166530.97728408,0.00025,2]
[392828628,1762011043185,-3961.22,0.00025,7]
[392828629,1762011043195,-412.74072197,0.00025,2]
[392828631,1762011043204,-175.96,0.00025,14]
[392828632,1762011043213,-167.08730257,0.00025,2]
[392828633,1762011043222,-2004.94254755,0.00025,2]
[392828634,1762011043232,-8967.2553349,0.00025,15]
[392828635,1762011043241,-1981.33887923,0.00025,2]
[392828637,1762011043250,-37147.0657494,0.00025,2]
[392828639,1762011043260,-151.0,0.00025,7]
[392828641,1762011043269,-487.146056,0.00025,7]
[392828643,1762011043278,-487.146056,0.00025,7]
[392828644,1762011043287,-487.146056,0.00025,7]
[392828645,1762011043296,-487.146056,0.00025,7]
[392828646,1762011043306,-151.0,0.00025,7]
[392828647,1762011043315,-151.0,0.00025,7]
[392828648,1762011043324,-161.328824,0.00025,7]
[392828649,1762011043333,-151.0,0.00025,7]
[392828650,1762011043343,-462.0,0.00025,2]
[392828651,1762011043352,-151.0,0.00025,7]
[392828652,1762011043362,-184.93791185,0.00025134,2]
[392828653,1762011043371,-319.31308523,0.00025134,2]
[392828654,1762011043381,-328.30686559,0.00025134,2]
[392828655,1762011043390,-221.43547354,0.00025134,2]
[392828656,1762011043400,-151.0,0.00025168,7]
[392828657,1762011043409,-487.146056,0.00025168,7]
[392828658,1762011043419,-487.146056,0.00025168,7]
[392828659,1762011043428,-487.146056,0.00025168,7]
[392828660,1762011043437,-487.146056,0.00025168,7]
[392828661,1762011043446,-165.284887,0.00025168,7]
[392828662,1762011043455,-155.168534,0.00025168,7]
[392828663,1762011043464,-151.0,0.00025168,7]
[392828664,1762011043473,-151.0,0.00025168,7]
[392828665,1762011043482,-366.98275536,0.00025169,2]
[392828666,1762011043491,-892.28903135,0.00025392,2]
[392828667,1762011043501,-900.8619243,0.00025716,2]
[392828668,1762011043510,-1292.87492581,0.00026,30]
[392828669,1762011043519,-420.0,0.00026176,2]
[392828670,1762011043529,-377.90952621,0.00026235,2]
[392828671,1762011043538,-987.54,0.0002636,3]
[392828672,1762011043547,-493.78,0.0002636,3]
[392828673,1762011043556,-547.77399,0.00026676,2]
[392828674,1762011043566,-1037.00764326,0.00027,5]
[392828675,1762011043575,-1856.25,0.00027,3]
[392828676,1762011043584,-422.96317567,0.00027169,2]
[392828677,1762011043593,-373.63393727,0.000272,2]
[392828678,1762011043602,-151.30763491,0.00027312,2]
[392828679,1762011043612,-490.24193256,0.00027852,3]
[392828680,1762011043620,-500.0,0.00027852,3]
[392828681,1762011043630,-203.6679492,0.0002789,2]
[392828682,1762011043639,-500.0,0.00028126,3]
[392828683,1762011043648,-587.0,0.00028382,2]
[392828684,1762011043658,-500.0,0.000284,3]
[392828685,1762011043667,-174.116442,0.00028846,2]
[392828686,1762011043676,-373.63393727,0.00029025,3]
[392828687,1762011043685,-323.6418334,0.00029028,2]
[392828688,1762011043694,-478.94359598,0.00029169,2]
[392828689,1762011043703,-464.05,0.000297,3]
[392828690,1762011043712,-15570.89840583,0.0003,30]
[392828691,1762011043722,-1194.0,0.0003,10]
[392828692,1762011043731,-160.0,0.0003,2]
[392828693,1762011043741,-215.08960987,0.00030011,2]
[392828694,1762011043751,-260.0,0.00030548,2]
[392828695,1762011043762,-439.0,0.00030774,2]
[392828696,1762011043773,-373.63393727,0.0003085,4]
[392828697,1762011043783,-203.6679492,0.0003085,2]
[392828698,1762011043793,-534.92401629,0.00031169,2]
[392828699,1762011043803,-1042.90842599,0.00031877,2]
[392828700,1762011043812,-403.98447456,0.00032478,2]
[392828701,1762011043821,-160.0,0.00032478,2]
[392828702,1762011043830,-373.63393727,0.00032675,5]
[392828703,1762011043840,-265.73265585,0.0003287,14]
[392828704,1762011043850,-300.0,0.00032877,120]
[392828705,1762011043859,-547.77399,0.00033165,2]
[392828706,1762011043868,-590.9044366,0.00033169,120]
[392828707,1762011043877,-158.61227196,0.000332,117]
[392828708,1762011043886,-195.164012,0.0003331,2]
[392828709,1762011043896,-464.05,0.000337,10]
[392828710,1762011043905,-203.6679492,0.0003381,2]
[392828711,1762011043918,-500.0,0.00033973,5]
[392828712,1762011043935,-1393.36001882,0.0003399,2]
[392828713,1762011043956,-5031.13644843,0.00034,2]
[392828714,1762011043965,-231.955479,0.00034,31]
[392828715,1762011043974,-151.0,0.00034,31]
[392828716,1762011043983,-151.0,0.00034,31]
[392828717,1762011043992,-151.0,0.00034,31]
[392828718,1762011044000,-153.088738,0.00034,31]
[392828719,1762011044010,-151.0,0.00034,31]
[392828720,1762011044019,-155.933781,0.00034,31]
[392828721,1762011044028,-151.0,0.00034,31]
[392828722,1762011044037,-151.0,0.00034,31]
[392828723,1762011044046,-151.0,0.00034,31]
[392828724,1762011044055,-151.0,0.00034,31]
[392828725,1762011044065,-165.691456,0.00034,31]
[392828726,1762011044074,-195.238872,0.00034,31]
[392828727,1762011044083,-308.970672,0.00034,31]
[392828728,1762011044092,-308.970672,0.00034,31]
[392828729,1762011044101,-308.970672,0.00034,31]
[392828730,1762011044110,-151.0,0.00034,31]
[392828731,1762011044120,-287.880775,0.00034,31]
[392828732,1762011044129,-287.880775,0.00034,31]
[392828733,1762011044138,-287.880775,0.00034,31]
[392828734,1762011044147,-287.880775,0.00034,31]
[392828735,1762011044157,-151.0,0.00034,31]
[392828736,1762011044166,-243.04831,0.00034,31]